lending/lending_fUSD_20240810
["ID","MTS","AMOUNT","RATE_DAILY","PERIOD"]
[334599761,1723308640056,-1894.0,0.00010989,2]
[334599762,1723308640067,-414.996,0.00010989,2]
[334599763,1723308640078,-150.0,0.00010989,2]
[334599764,1723308640089,-27.31731894,0.00010989,2]
[334599765,1723308640101,-1026.408712,0.00010989,2]
[334599766,1723308640113,-2235.27396906,0.00010989,2]
[334599767,1723308640125,-7830.90046554,0.00010989,2]
[334599768,1723308640138,-205.30653446,0.00010989,2]
[334599769,1723308640148,-2222.922,0.00010989,2]
[334599770,1723308640159,-150.0,0.00010989,2]
[334599771,1723308640169,-920.731,0.00010989,2]
[334599772,1723308640179,-1075.0,0.00010989,2]
[334599773,1723308640190,-1590.8408422,0.00010997,2]
[334599774,1723308640199,-137.17842334,0.00010997,2]
[334599775,1723308640213,-504.98169967,0.00010997,2]
[334599776,1723308640225,-860.75006789,0.00010997,2]
[334599777,1723308640246,-3020.08359992,0.00010997,2]
[334599778,1723308640259,-760.30964038,0.00010997,2]
[334599779,1723308640268,-877.82241144,0.00010997,2]
[334599780,1723308640279,-3081.53597186,0.00010997,2]
[334599781,1723308640289,-150.01,0.00010999,2]
[334599782,1723308640300,-908.73224136,0.00011,2]
[334599783,1723308640312,-553.32447662,0.00011,2]
[334599784,1723308640323,-1439.39638113,0.00011,2]
[334599785,1723308640341,-643.23488832,0.00011,2]
[334599892,1723308642698,-22420.08937347,0.00011,2]
[334599894,1723308642880,-4223.95228512,0.00011,2]
[334599895,1723308642891,-2430.20481688,0.00011,2]
[334599896,1723308642904,-1224.5387,0.00011,2]
[334599897,1723308642917,-1738.02113,0.00011,2]
[334599899,1723308642930,-682.39886699,0.00011,2]
[334599901,1723308642945,-2627.76022133,0.00011,2]
[334599904,1723308642966,-37748.66459886,0.00011,2]
[334599906,1723308642977,-5971.9,0.00011,2]
[334599909,1723308642990,-597.87924,0.00011,2]
[334599911,1723308643006,-1500.0,0.00011,2]
[334599913,1723308643018,-1385.902562,0.00011,2]
[334599915,1723308643034,-21986.27470492,0.00011,2]
[334599917,1723308643046,-10877.31968114,0.00011,2]
[334599920,1723308643070,-704.09202264,0.00011,2]
[334599922,1723308643084,-6855.90067227,0.00011,2]
[334599980,1723308644479,-651.33802245,0.00011,2]
[334599981,1723308644491,-370.19267968,0.00011,2]
[334599982,1723308644511,-1201.87353666,0.00011,2]
[334599983,1723308644522,-28619.65095822,0.00011,2]
[334599984,1723308644534,-1286.6550992,0.00011,2]
[334599985,1723308644545,-699.119381,0.00011,2]
[334599986,1723308644556,-562.41626868,0.00011,2]
[334599987,1723308644573,-1196.04688222,0.00011,2]
[334599988,1723308644584,-5242.74940921,0.00011,2]
[334600021,1723308645795,-356.46,0.000105,2]
[334600025,1723308645805,-539.54,0.00010997,2]
[334600029,1723308645816,-2.5102771,0.00010997,2]
[334600032,1723308645825,-1382.4774755,0.00011,2]
[334600035,1723308645836,-1281.11121,0.00011,2]
[334600038,1723308645849,-3651.45990221,0.00011,2]
[334600044,1723308645878,-1499.90008,0.00011,2]
[334600048,1723308645889,-493.09011844,0.00011,2]
[334600050,1723308645904,-317.65185842,0.00011,2]
[334600053,1723308645924,-35354.68384835,0.00011,2]
[334600056,1723308645936,-1780.43176568,0.00011,2]
[334600058,1723308645947,-3017.17189591,0.00011,2]
[334600060,1723308645959,-1306.89059751,0.00011,2]
[334600063,1723308645972,-1644.15644672,0.00011,2]
[334600065,1723308645983,-569.62893995,0.00011,2]
[334600068,1723308646007,-18747.02763147,0.00011,2]
[334600070,1723308646018,-2059.0,0.00011,2]
[334600072,1723308646030,-6223.91249305,0.00011,2]
[334600074,1723308646041,-1638.832655,0.00011,2]
[334600076,1723308646052,-371.08009368,0.00011,2]
[334600079,1723308646064,-950.81443091,0.00011,2]
[334600081,1723308646075,-3187.19048631,0.00011,2]
[334600090,1723308646359,-642.70845896,0.00011,2]
[334600091,1723308646370,-453.08776319,0.00011,2]
[334600092,1723308646389,-920.11067912,0.00011,2]
[334600093,1723308646400,-20537.74473871,0.00011,2]
[334600094,1723308646411,-1492.69739753,0.00011,2]
[334600095,1723308646423,-4371.77553368,0.00011,2]
[334600096,1723308646435,-3987.91705982,0.00011,2]
[334600097,1723308646446,-1682.26,0.00011,2]
[334600098,1723308690746,150.0,0.00025291,120]
[334600101,1723308872088,1379.57,0.0001,2]
[334600102,1723308923425,391.89,8.219e-05,2]
[334600111,1723308945502,243.8,9.544e-05,2]
[334600112,1723308960860,690.98,9.551e-05,2]
[334600113,1723309050798,150.0,0.00024241,120]
[334600114,1723309123725,-321.39,0.00010102,2]
[334600115,1723309123746,-321.39,0.00010105,2]
[334600116,1723309123769,-321.39,0.00010107,2]
[334600117,1723309123791,-321.39,0.0001011,2]
[334600118,1723309123816,-321.39,0.00010113,2]
[334600119,1723309123838,-321.39,0.00010115,2]
[334600120,1723309123860,-321.39,0.00010118,2]
[334600121,1723309123882,-321.39,0.00010121,2]
[334600122,1723309123905,-321.39,0.00010123,2]
[334600123,1723309123927,-321.39,0.00010126,2]
[334600124,1723309123949,-321.39,0.00010129,2]
[334600125,1723309123971,-321.39,0.00010131,2]
[334600126,1723309123992,-321.39,0.00010134,2]
[334600127,1723309124014,-321.39,0.00010137,2]
[334600128,1723309124036,-321.39,0.00010139,2]
[334600129,1723309124058,-321.39,0.00010142,2]
[334600130,1723309124080,-321.39,0.00010145,2]
[334600131,1723309124102,-321.39,0.00010147,2]
[334600132,1723309124124,-321.39,0.0001015,2]
[334600133,1723309124150,-321.39,0.00010153,2]
[334600134,1723309124172,-250.0,0.00010159,2]
[334600135,1723309124194,-3022.5,0.0001023,2]
[334600136,1723309124218,-300.0,0.00010481,2]
[334600137,1723309124239,-300.0,0.00010481,2]
[334600138,1723309124262,-391.89,0.00010482,2]
[334600139,1723309124283,-150.0,0.00010485,2]
[334600140,1723309124305,-329.5,0.00010485,2]
[334600141,1723309124328,-243.8,0.00010737,2]
[334600142,1723309124350,-690.98,0.00010745,2]
[334600143,1723309124371,-9032.81209199,0.000108,2]
[334600144,1723309124395,-427.23,0.00010883,2]
[334600145,1723309124416,-4380.04183939,0.0001089,2]
[334600146,1723309124441,-6815.3174,0.00010897,2]
[334600147,1723309124462,-904.9556,0.000109,2]
[334600148,1723309124484,-7333.17306862,0.000109,2]
[334600151,1723309290709,150.0,0.00024371,120]
[334600153,1723309371232,402.36488711,9.986e-05,2]
[334600154,1723309470798,150.0,0.00023791,120]
[334600155,1723309517067,299.2677431,9.888e-05,2]
[334600156,1723309531501,150.0,0.00023842,120]
[334600157,1723309532027,352.7,8.219e-05,2]
[334600158,1723309625888,531.0316463,9.962e-05,2]
[334600168,1723309666692,501.12576333,9.962e-05,2]
[334600185,1723309711264,150.0,0.0002512,120]
[334600186,1723309736893,23890.0,9.986e-05,2]
[334600187,1723309739483,250.0,9.986e-05,2]
[334600189,1723309770741,150.0,0.00025595,120]
[334600190,1723309810678,-1017.26996016,0.00010002,2]
[334600199,1723309831954,-521.97523984,0.00010002,2]
[334600200,1723309831966,-87.09845891,0.00010006,2]
[334600201,1723309832076,-77.65154109,0.00010006,2]
[334600202,1723309832086,-237.38845891,0.00010007,2]
[334600203,1723309832138,-1688.13154109,0.00010007,2]
[334600204,1723309832148,-162.54,0.00010021,2]
[334600205,1723309832158,-585.41,0.00010029,2]
[334600206,1723309832168,-352.7,0.00010478,2]
[334600207,1723309832179,-1082.28536296,0.00010682,2]
[334600208,1723309832188,-1937.24524,0.0001089,2]
[334600209,1723309832199,-150.99,0.0001089,2]
[334600211,1723309832208,-300.0,0.00010898,2]
[334600212,1723309832218,-150.0,0.00010899,2]
[334600214,1723309832228,-499.99,0.00010899,2]
[334600216,1723309832237,-331.74,0.00010899,2]
[334600218,1723309832247,-32844.55003138,0.000109,2]
[334600219,1723309832257,-3294.8956,0.000109,2]
[334600220,1723309832267,-2857.68,0.000109,2]
[334600223,1723309832277,-9414.46,0.000109,2]
[334600226,1723309832287,-1200.781944,0.000109,2]
[334600229,1723309832296,-500.982,0.000109,2]
[334600232,1723309832306,-861.31238392,0.000109,2]
[334600235,1723309832317,-7843.8526,0.000109,2]
[334600237,1723309832327,-224.9761,0.000109,2]
[334600239,1723309832336,-917.5453,0.000109,2]
[334600241,1723309832346,-280.6674,0.000109,2]
[334600243,1723309832356,-783.92,0.000109,2]
[334600245,1723309832366,-150.99,0.000109,2]
[334600247,1723309832380,-150.0,0.000109,2]
[334600248,1723309832390,-356.46,0.000109,2]
[334600249,1723309832399,-426.27,0.000109,2]
[334600250,1723309832409,-1937.24524,0.000109,2]
[334600251,1723309832419,-7500.0,0.000109,2]
[334600252,1723309832428,-154.42626944,0.000109,2]
[334600253,1723309832438,-5949.98634234,0.000109,2]
[334600254,1723309832449,-396.12328724,0.000109,2]
[334600255,1723309832459,-856.63111095,0.000109,2]
[334600256,1723309832469,-451.10400454,0.000109,2]
[334600257,1723309832479,-1937.24525,0.0001094,2]
[334600258,1723309832489,-440.70293,0.0001094,2]
[334600259,1723309832499,-1500.0,0.00010959,5]
[334600260,1723309832509,-1937.24524,0.0001098,2]
[334600261,1723309832519,-1136.0,0.00010989,2]
[334600262,1723309832529,-406.267,0.00010989,2]
[334600263,1723309832539,-810.0,0.00010989,2]
[334600264,1723309832549,-340.33,0.00010989,2]
[334600265,1723309832559,-439.64,0.00010989,2]
[334600266,1723309832571,-281.21346017,0.00010997,2]
[334600267,1723309832581,-3341.7303465,0.00010997,2]
[334600268,1723309832591,-508.4202439,0.00010997,2]
[334600269,1723309832600,-2760.6702645,0.00010997,2]
[334600270,1723309832611,-231.9176225,0.00010997,2]
[334600271,1723309832620,-1217.7855179,0.00010997,2]
[334600272,1723309832630,-254.6188301,0.00010999,2]
[334600273,1723309832640,-740.0,0.00010999,2]
[334600274,1723309832649,-740.0,0.00010999,2]
[334600275,1723309832659,-740.0,0.00010999,2]
[334600276,1723309832669,-740.0,0.00010999,2]
[334600277,1723309832678,-740.0,0.00010999,2]
[334600278,1723309832688,-740.0,0.00010999,2]
[334600279,1723309832698,-740.0,0.00010999,2]
[334600280,1723309832708,-740.0,0.00010999,2]
[334600281,1723309832717,-740.0,0.00010999,2]
[334600282,1723309832728,-740.0,0.00010999,2]
[334600283,1723309832738,-358.32,0.00010999,2]
[334600284,1723309832748,-15094.36482302,0.00011,2]
[334600285,1723309832757,-24305.86622257,0.00011,2]
[334600286,1723309832771,-2294.11842207,0.00011,2]
[334600292,1723309838476,-150.0,0.00010959,2]
[334600293,1723309838487,-2165.88060476,0.00011,2]
[334600294,1723309838501,-4822.68020157,0.00011,2]
[334600314,1723309840035,-400.4380872,0.00011,2]
[334600315,1723309840162,-817.86703771,0.00011,2]
[334600316,1723309840271,-607.558541,0.00011,2]
[334600317,1723309840282,-3917.15436716,0.00011,2]
[334600382,1723309842956,-26941.43002642,0.00011,2]
[334600395,1723309846169,-1019.47065825,0.00011,2]
[334600400,1723309846551,-545.40061468,0.00011,2]
[334600406,1723309890782,150.0,0.00024869,120]
[334600407,1723309950818,150.0,0.00026239,120]
[334600408,1723310070765,150.0,0.00026461,120]
[334600409,1723310165960,317.43,8.219e-05,2]
[334600415,1723310430744,150.0,0.0002406,120]
[334600417,1723310491277,150.0,0.00024264,120]
[334600420,1723310604559,1221.990895,9.3e-05,2]
[334600421,1723310610769,150.0,0.00025457,120]
[334600423,1723310704906,301.55,8.219e-05,2]
[334600424,1723310730745,150.0,0.00026855,120]
[334600425,1723310765205,164.75,9.872e-05,2]
[334600432,1723310851054,150.0,0.0002614,120]
[334600436,1723310882065,250.0,9.867e-05,2]
[334600439,1723310907594,870705.70171139,0.00027,120]
[334600440,1723310911329,150.0,0.00025764,120]
[334600447,1723310944182,531.67,9.876e-05,2]
[334600462,1723311032075,-550.0,0.0001,2]
[334600463,1723311032088,-182.85,0.00010004,2]
[334600464,1723311032100,-188.7,0.00010007,2]
[334600465,1723311032111,-731.74,0.00010022,2]
[334600466,1723311032122,-468.33,0.00010116,2]
[334600467,1723311032133,-301.55,0.00010474,2]
[334600468,1723311032145,-300.0,0.00010499,2]
[334600469,1723311032156,-1028.27599573,0.000105,2]
[334600470,1723311032168,-4987.05,0.000105,2]
[334600471,1723311032180,-3261.50400427,0.0001059,2]
[334600472,1723311032194,-1531.8768738,0.0001059,2]
[334600473,1723311032206,-4323.0289339,0.00010599,2]
[334600474,1723311032226,-369.1910661,0.00010599,2]
[334600475,1723311032238,-150.0,0.00010599,2]
[334600476,1723311032250,-150.0,0.000106,2]
[334600477,1723311032262,-151.44,0.000106,2]
[334600478,1723311032273,-104.44617447,0.000106,2]
[334600479,1723311032286,-75.98382553,0.000106,2]
[334600480,1723311032296,-356.46,0.000106,2]
[334600481,1723311032306,-150.0,0.000106,2]
[334600482,1723311032315,-150.0,0.000106,2]
[334600483,1723311032325,-426.27,0.000106,2]
[334600484,1723311032334,-530.87,0.000106,2]
[334600485,1723311032344,-530.87,0.000106,2]
[334600486,1723311032355,-426.27,0.000106,2]
[334600487,1723311032366,-150.0,0.000106,2]
[334600488,1723311032375,-150.0,0.000106,2]
[334600491,1723311032385,-426.27,0.000106,2]
[334600494,1723311032395,-426.27,0.000106,2]
[334600497,1723311032405,-202.25,0.000106,2]
[334600500,1723311032415,-530.87,0.000106,2]
[334600504,1723311032426,-835.17,0.000106,2]
[334600506,1723311032436,-150.0,0.000106,2]
[334600516,1723311032686,-835.17,0.000106,2]
[334600517,1723311032707,-241.03,0.000106,2]
[334600518,1723311032722,-52.78214221,0.00010712,2]
[334600519,1723311032734,-97.21785779,0.00010712,2]
[334600520,1723311032746,-150.0,0.00010716,2]
[334600521,1723311032759,-150.0,0.00010735,2]
[334600522,1723311032769,-150.0,0.00010746,2]
[334600523,1723311032778,-150.0,0.00010755,2]
[334600524,1723311032788,-150.0,0.0001076,2]
[334600525,1723311032798,-150.0,0.00010762,2]
[334600526,1723311032807,-150.0,0.00010767,2]
[334600527,1723311032817,-150.0,0.00010767,2]
[334600528,1723311032827,-150.0,0.00010781,2]
[334600529,1723311032837,-150.0,0.00010783,2]
[334600530,1723311032846,-150.0,0.000108,2]
[334600531,1723311032856,-150.0,0.000108,2]
[334600532,1723311032865,-219.72353734,0.000108,2]
[334600533,1723311032877,-200.89646266,0.000108,2]
[334600534,1723311032886,-150.0,0.000108,2]
[334600535,1723311032896,-150.0,0.00010801,2]
[334600536,1723311032906,-150.0,0.00010802,2]
[334600537,1723311032916,-150.0,0.00010807,2]
[334600538,1723311032927,-150.0,0.00010812,2]
[334600539,1723311032937,-150.0,0.00010823,2]
[334600540,1723311032946,-150.0,0.00010827,2]
[334600541,1723311032956,-150.0,0.0001083,2]
[334600542,1723311032966,-150.0,0.00010834,2]
[334600543,1723311032975,-150.0,0.00010838,2]
[334600544,1723311032985,-150.0,0.00010841,2]
[334600545,1723311032995,-150.0,0.00010841,2]
[334600546,1723311033004,-99.10353734,0.00010845,2]
[334600547,1723311033019,-50.89646266,0.00010845,2]
[334600548,1723311033029,-150.0,0.00010849,2]
[334600549,1723311033039,-150.0,0.0001085,2]
[334600550,1723311033048,-72.67067262,0.00010851,2]
[334600551,1723311033060,-77.32932738,0.00010851,2]
[334600552,1723311033070,-150.0,0.00010851,2]
[334600553,1723311033080,-150.0,0.00010853,2]
[334600554,1723311033090,-150.0,0.00010857,2]
[334600555,1723311033100,-150.0,0.00010862,2]
[334600556,1723311033109,-150.0,0.00010863,2]
[334600557,1723311033119,-150.0,0.00010867,2]
[334600558,1723311033129,-150.0,0.00010868,2]
[334600559,1723311033139,-150.0,0.0001088,2]
[334600560,1723311033148,-150.0,0.00010884,2]
[334600561,1723311033158,-150.0,0.00010893,2]
[334600562,1723311033167,-150.0,0.00010895,2]
[334600563,1723311033177,-150.0,0.00010897,2]
[334600564,1723311033186,-14.63196998,0.00010899,2]
[334600565,1723311038186,-11682.65952151,0.00010899,2]
[334600566,1723311038196,-28661.7256,0.000109,2]
[334600567,1723311038205,-165.37975231,0.000109,2]
[334600568,1723311038215,-38340.5239,0.000109,2]
[334600569,1723311038225,-150.0,0.000109,2]
[334600570,1723311038234,-150.0,0.000109,2]
[334600571,1723311038245,-7500.0,0.000109,2]
[334600572,1723311038254,-300.73600304,0.000109,2]
[334600573,1723311038264,-256.15454125,0.000109,2]
[334600574,1723311038273,-4185.83453128,0.000109,2]
[334600575,1723311038282,-650.70314812,0.000109,2]
[334600576,1723311038292,-150.0,0.00010905,2]
[334600577,1723311038302,-150.0,0.00010908,2]
[334600578,1723311038312,-150.0,0.00010915,2]
[334600579,1723311038322,-150.0,0.00010916,2]
[334600580,1723311038331,-150.0,0.00010924,2]
[334600581,1723311038341,-150.0,0.00010928,2]
[334600582,1723311038351,-150.0,0.00010939,2]
[334600583,1723311038360,-150.0,0.00010941,2]
[334600584,1723311038370,-150.0,0.00010945,2]
[334600585,1723311038380,-150.0,0.00010949,2]
[334600586,1723311038389,-150.0,0.00010952,2]
[334600587,1723311038398,-1500.0,0.00010959,5]
[334600588,1723311038407,-150.0,0.00010965,2]
[334600589,1723311038417,-150.0,0.00010966,2]
[334600590,1723311038426,-150.0,0.0001097,2]
[334600591,1723311038435,-200.0,0.00010973,2]
[334600592,1723311038445,-200.0,0.00010973,2]
[334600593,1723311038454,-150.0,0.00010981,2]
[334600594,1723311038463,-150.0,0.00010982,2]
[334600595,1723311038473,-150.0,0.00010985,2]
[334600596,1723311038483,-1582.0,0.00010989,2]
[334600597,1723311038492,-1256.0,0.00010989,2]
[334600598,1723311038502,-1925.0,0.00010989,2]
[334600599,1723311038512,-622.0,0.00010989,2]
[334600600,1723311038521,-5837.0,0.00010989,2]
[334600601,1723311038530,-7035.449,0.00010989,2]
[334600602,1723311038540,-289.0,0.00010989,2]
[334600604,1723311038549,-16054.28058991,0.0001099,3]
[334600607,1723311038566,-801.182,0.00010989,2]
[334600609,1723311038576,-26691.05770629,0.0001099,3]
[334600743,1723311042614,-711.33,0.00010989,2]
[334600792,1723311043168,-424.67,0.00010989,2]
[334600793,1723311043178,-5590.10966965,0.0001099,3]
[334600794,1723311043187,-797.4861349,0.00010997,2]
[334600795,1723311043197,-518.0776497,0.00010997,2]
[334600796,1723311043206,-455.19338504,0.00010997,2]
[334600797,1723311043234,-489.18296135,0.00010997,2]
[334600798,1723311043246,-362.76485203,0.00010997,2]
[334600804,1723311044559,-5129.10239948,0.00010997,2]
[334600805,1723311044570,-2006.7593048,0.00010997,2]
[334600806,1723311044580,-3038.33161242,0.00010997,2]
[334600807,1723311044590,-14069.94971281,0.00010999,2]
[334600808,1723311044599,-7547.1824115,0.00011,2]
[334600809,1723311044609,-25177.42481274,0.00011,2]
[334600810,1723311044630,-2179.86755184,0.00011,2]
[334600811,1723311044642,-373.5132,0.00011,2]
[334600830,1723311046355,-1356.1785373,0.00011,2]
[334600831,1723311046420,-274.68725396,0.00011,2]
[334600843,1723311241402,271.39,8.796e-05,2]
[334600849,1723311295369,7742.24999999,8.796e-05,2]
[334600851,1723311311298,-300.0,0.00010889,2]
[334600852,1723311311319,-300.0,0.00010889,2]
[334600853,1723311311341,-1937.24525,0.0001089,2]
[334600854,1723311311365,-440.70293,0.0001089,2]
[334600855,1723311311388,-440.70294,0.0001089,2]
[334600856,1723311311411,-440.70294,0.0001089,2]
[334600857,1723311311432,-440.70293,0.0001089,2]
[334600858,1723311311460,-440.70294,0.0001089,2]
[334600859,1723311311481,-302.305,0.000109,2]
[334600860,1723311311506,-200.49066868,0.000109,2]
[334600861,1723311311528,-2790.5563542,0.000109,2]
[334600862,1723311311550,-433.80209876,0.000109,2]
[334600863,1723311311571,-391.09894024,0.000109,2]
[334600864,1723311311593,-1500.0,0.00010959,5]
[334600865,1723311311615,-895.7025181,0.00010997,2]
[334600866,1723311311638,-1378.7708069,0.00010997,2]
[334600867,1723311311662,-3773.59120575,0.00011,2]
[334600868,1723311311687,-249435.92247737,0.00011,2]
[334600869,1723311319201,203.25325771,0.00027,120]
[334600884,1723311549305,-174.16,0.00010213,2]
[334600885,1723311549326,-574.66,0.00010278,2]
[334600886,1723311549346,-6532.83214982,0.0001044,2]
[334600887,1723311549366,-324.165,0.00010754,2]
[334600888,1723311549388,-150.0,0.00010889,2]
[334600889,1723311549409,-10527.56234235,0.00010899,2]
[334600890,1723311549430,-2716.62050783,0.000109,2]
[334600894,1723311690749,150.0,0.00024259,120]
[334600896,1723311999565,257.82,8.398e-05,2]
[334600905,1723312111232,150.0,0.00026346,120]
[334600906,1723312230734,150.0,0.00026481,120]
[334600912,1723312232344,-484.55762474,0.0001,2]
[334600915,1723312238494,-65.44237526,0.0001,2]
[334600916,1723312238503,-185.79,0.00010344,2]
[334600917,1723312238513,-540.27,0.00010495,2]
[334600918,1723312238522,-257.82,0.00010662,2]
[334600919,1723312238531,-300.0,0.00010799,2]
[334600920,1723312238540,-38.77315921,0.000108,2]
[334600921,1723312238552,-866.18244079,0.000108,2]
[334600922,1723312238561,-219.4456,0.000108,2]
[334600923,1723312238571,-6815.3174,0.000108,2]
[334600924,1723312238580,-200.0,0.00010873,2]
[334600925,1723312238589,-150.0,0.00010877,2]
[334600926,1723312238598,-10527.56234235,0.00010899,2]
[334600927,1723312238607,-8388.84249217,0.000109,2]
[334600928,1723312238617,-5092.0936,0.000109,2]
[334600929,1723312238626,-500.0,0.000109,2]
[334600930,1723312238636,-21776.17220569,0.000109,2]
[334600931,1723312238647,-265.615,0.000109,2]
[334600932,1723312238658,-644.68559983,0.000109,2]
[334600933,1723312238670,-1016.61,0.000109,2]
[334600934,1723312238681,-2420.96,0.000109,2]
[334600935,1723312238692,-395.52138118,0.000109,2]
[334600936,1723312238704,-376.259104,0.000109,2]
[334600937,1723312238715,-3907.29000001,0.000109,2]
[334600938,1723312238726,-2766.07286097,0.000109,2]
[334600939,1723312238737,-1200.0,0.000109,2]
[334600940,1723312238816,-758.11221771,0.000109,2]
[334600941,1723312238827,-987.45743925,0.000109,2]
[334600996,1723312240442,-3036.3,0.000109,2]
[334601009,1723312240785,-2495.7200772,0.000109,2]
[334601100,1723312243565,-376.8899995,0.000109,2]
[334601101,1723312243576,-2610.0,0.000109,2]
[334601102,1723312244887,-15034.27380017,0.000109,2]
[334601103,1723312244906,-383.53475,0.000109,2]
[334601121,1723312246606,-546.94548655,0.000109,2]
[334601122,1723312246628,-914.18041574,0.000109,2]
[334601123,1723312246691,-114.55428211,0.000109,2]
[334601124,1723312246702,-2136.19702433,0.000109,2]
[334601146,1723312471641,232.03,8.562e-05,2]
[334601149,1723312530731,150.0,0.00026295,120]
[334601153,1723312956349,220.42,8.297e-05,2]
[334601155,1723313132005,150.0,0.00026984,120]
[334601158,1723313190749,150.0,0.00026834,120]
[334601176,1723313431694,-174.16,0.00010201,2]
[334601177,1723313431703,-182.72107954,0.00010228,2]
[334601178,1723313431714,-249.49892046,0.00010228,2]
[334601179,1723313431723,-189.48090301,0.0001034,2]
[334601180,1723313431735,-7.08259878,0.0001034,2]
[334601181,1723313431744,-183.59,0.0001044,2]
[334601182,1723313431753,-220.42,0.00010561,2]
[334601183,1723313431762,-124.22665893,0.00010593,2]
[334601184,1723313431779,-443.55334107,0.00010593,2]
[334601185,1723313431789,-1000.0,0.000107,2]
[334601186,1723313431798,-150.0,0.0001078,2]
[334601187,1723313431807,-984.43562324,0.000108,2]
[334601211,1723313437830,-3879.60000004,0.000108,2]
[334601212,1723313437956,-1248.79267672,0.000108,2]
[334601213,1723313437966,-712.54,0.000108,2]
[334601214,1723313437975,-908.65,0.000108,2]
[334601215,1723313437984,-2716.6206,0.00010897,2]
[334601216,1723313437994,-9474.80610816,0.00010899,2]
[334601217,1723313438003,-18978.8786329,0.000109,2]
[334601230,1723313439794,-2727.91842474,0.000109,2]
[334601231,1723313440152,-2000.0,0.000109,2]
[334601314,1723313444179,-108249.79724236,0.000109,2]
[334601315,1723313444188,-150.0,0.000109,2]
[334601316,1723313444197,-386.35697123,0.000109,2]
[334601317,1723313444206,-200.49066868,0.000109,2]
[334601318,1723313444215,-2121.11130198,0.000109,2]
[334601319,1723313444224,-168.18924987,0.000109,2]
[334601320,1723313444233,-250.0,0.00010959,2]
[334601321,1723313444242,-1500.0,0.00010959,5]
[334601322,1723313444252,-793.66,0.00010959,2]
[334601323,1723313444261,-249.834,0.00010989,2]
[334601324,1723313444270,-1136.0,0.00010989,2]
[334601325,1723313444279,-360.564,0.00010989,2]
[334601326,1723313444288,-3544.6810644,0.00010997,2]
[334601327,1723313444297,-1187.1374212,0.00010999,3]
[334601328,1723313444306,-16208.14035472,0.00011,2]
[334601329,1723313444319,-5537.36227856,0.00011,2]
[334601370,1723313455697,198.37,9.256e-05,2]
[334601372,1723313544650,183.1,8.314e-05,2]
[334601373,1723313572445,200.0,9.781e-05,2]
[334601375,1723313593919,1000.0,9.755e-05,2]
[334601376,1723313601573,220.18,9.751e-05,2]
[334601377,1723313662142,346.6,9.751e-05,2]
[334601378,1723313722267,1868.69910501,9.821e-05,2]
[334601379,1723313722291,1293.92089499,9.821e-05,2]
[334601380,1723313724008,2020.55,9.743e-05,2]
[334601381,1723313753615,1975.9,9.821e-05,2]
[334601382,1723313779662,194.76,9.743e-05,2]
[334601383,1723313781990,270.12,9.743e-05,2]
[334601384,1723313886280,166.24,9.73e-05,2]
[334601385,1723313940179,200.0,9.707e-05,2]
[334601386,1723313946413,247.16,8.219e-05,2]
[334601387,1723313974596,285.13,9.697e-05,2]
[334601388,1723314034307,200.0,9.69e-05,2]
[334601390,1723314079885,203.88619749,9.642e-05,2]
[334601391,1723314094439,250.0,9.71e-05,2]